[Event "Torneo Nuevo Centro. Jornada 10"]
[Site "Chess.com"]
[Date "2020.08.21"]
[Round "7"]
[White "Serarols Mabras, Bernat"]
[Black "Sos Andreu, Eric"]
[Result "1-0"]
[WhiteElo "2460"]
[BlackElo "2513"]
[TimeControl "180+2"]
[EndTime "11:45:18 PDT"]
[Termination "Victoria de bernatserarols por abandono"]

1. d4 {[%clk 0:03:01.9]} 1... Nf6 {[%clk 0:02:56.7]} 2. c4 {[%clk 0:03:03.2]}
2... g6 {[%clk 0:02:57.7]} 3. Nf3 {[%clk 0:03:00.9]} 3... Bg7 {[%clk 0:02:56.6]}
4. e3 {[%clk 0:03:01.7]} 4... O-O {[%clk 0:02:57]} 5. Be2 {[%clk 0:03:01.6]}
5... d6 {[%clk 0:02:55.5]} 6. Nc3 {[%clk 0:03:00.3]} 6... Nbd7 {[%clk
0:02:56.2]} 7. O-O {[%clk 0:03:01]} 7... e5 {[%clk 0:02:57.4]} 8. Qc2 {[%clk
0:03:02.2]} 8... Re8 {[%clk 0:02:57.9]} 9. Rd1 {[%clk 0:03:02.9]} 9... c6 {[%clk
0:02:51.5]} 10. b3 {[%clk 0:03:03]} 10... e4 {[%clk 0:02:43]} 11. Nd2 {[%clk
0:03:03.5]} 11... Qe7 {[%clk 0:02:44.2]} 12. b4 {[%clk 0:03:04.6]} 12... Nf8
{[%clk 0:02:44.9]} 13. a4 {[%clk 0:03:06]} 13... h5 {[%clk 0:02:45.5]} 14. Ba3
{[%clk 0:03:07.4]} 14... N8h7 {[%clk 0:02:45.2]} 15. Rdc1 {[%clk 0:03:07.4]}
15... Ng5 {[%clk 0:02:43.7]} 16. Qd1 {[%clk 0:03:08.1]} 16... Bg4 {[%clk
0:02:40.1]} 17. h3 {[%clk 0:03:05.8]} 17... Bf5 {[%clk 0:02:30.2]} 18. Bf1
{[%clk 0:03:04.6]} 18... Qe6 {[%clk 0:02:22.1]} 19. a5 {[%clk 0:03:01.7]} 19...
Nxh3+ {[%clk 0:01:56.5]} 20. gxh3 {[%clk 0:03:01]} 20... Bxh3 {[%clk 0:01:58.4]}
21. Bxh3 {[%clk 0:02:57.2]} 21... Qxh3 {[%clk 0:02:00.3]} 22. Qf1 {[%clk
0:02:57.5]} 22... Qh4 {[%clk 0:01:59.3]} 23. Qg2 {[%clk 0:02:55.6]} 23... Re6
{[%clk 0:01:44.4]} 24. b5 {[%clk 0:02:54]} 24... Bh6 {[%clk 0:01:43.7]} 25. Qh2
{[%clk 0:02:33.3]} 25... Qg4+ {[%clk 0:01:33]} 26. Qg2 {[%clk 0:02:33.8]} 26...
Qf5 {[%clk 0:01:28.6]} 27. a6 {[%clk 0:02:31.9]} 27... bxa6 {[%clk 0:01:29.4]}
28. bxc6 {[%clk 0:02:32.1]} 28... Rae8 {[%clk 0:01:22.3]} 29. d5 {[%clk
0:02:31.2]} 29... Re5 {[%clk 0:01:23.4]} 30. Bxd6 {[%clk 0:02:31.8]} 30... Ng4
{[%clk 0:01:22.8]} 31. Bxe5 {[%clk 0:02:30.8]} 31... Nxe5 {[%clk 0:01:21.3]} 32.
Ncxe4 {[%clk 0:02:30]} 32... Bf8 {[%clk 0:00:52.6]} 33. c7 {[%clk 0:02:28.2]}
33... Qd7 {[%clk 0:00:46.8]} 1

[Event "Torneo Nuevo Centro. Jornada 10"]
[Site "Chess.com"]
[Date "2020.08.21"]
[Round "7"]
[White "Perez Garcia, Jose Miguel"]
[Black "Aguado, Pablo Luis"]
[Result "1-0"]
[WhiteElo "2059"]
[BlackElo "1942"]
[TimeControl "180+2"]
[EndTime "11:45:34 PDT"]
[Termination "Victoria de PEREZOV69 por abandono"]

1. Nf3 {[%clk 0:03:01.9]} 1... d5 {[%clk 0:03:00.9]} 2. c4 {[%clk 0:03:02.8]}
2... e6 {[%clk 0:03:02]} 3. g3 {[%clk 0:03:02.9]} 3... Nf6 {[%clk 0:03:02.8]} 4.
Bg2 {[%clk 0:03:04.3]} 4... c5 {[%clk 0:02:56.2]} 5. O-O {[%clk 0:03:03.9]} 5...
Nc6 {[%clk 0:02:56.5]} 6. d4 {[%clk 0:03:04.6]} 6... cxd4 {[%clk 0:02:57.3]} 7.
Nxd4 {[%clk 0:03:05.4]} 7... Bc5 {[%clk 0:02:50.2]} 8. Nb3 {[%clk 0:03:06]} 8...
Bb6 {[%clk 0:02:49.7]} 9. N1d2 {[%clk 0:03:04.7]} 9... O-O {[%clk 0:02:49.4]}
10. e3 {[%clk 0:03:05.7]} 10... Qe7 {[%clk 0:02:43.7]} 11. Qe2 {[%clk
0:03:06.2]} 11... Rd8 {[%clk 0:02:44.3]} 12. Rd1 {[%clk 0:03:06.6]} 12... a5
{[%clk 0:02:34.7]} 13. cxd5 {[%clk 0:03:04.2]} 13... exd5 {[%clk 0:02:35.1]} 14.
Nf3 {[%clk 0:03:04.7]} 14... a4 {[%clk 0:02:29.2]} 15. Nbd4 {[%clk 0:03:02.9]}
15... Nxd4 {[%clk 0:02:29.9]} 16. Nxd4 {[%clk 0:03:04.8]} 16... Bxd4 {[%clk
0:02:31.1]} 17. Rxd4 {[%clk 0:03:04.5]} 17... Be6 {[%clk 0:02:30.7]} 18. Qd1
{[%clk 0:03:04.5]} 18... Qe8 {[%clk 0:02:25.5]} 19. Bd2 {[%clk 0:03:04]} 19...
b5 {[%clk 0:02:19.7]} 20. Bb4 {[%clk 0:03:03.5]} 20... Rac8 {[%clk 0:02:19.3]}
21. Rc1 {[%clk 0:02:53.5]} 21... Rxc1 {[%clk 0:02:17]} 22. Qxc1 {[%clk
0:02:55.4]} 22... Rc8 {[%clk 0:02:18.1]} 23. Qd1 {[%clk 0:02:49.8]} 23... Qc6
{[%clk 0:01:57.7]} 24. Bc3 {[%clk 0:02:48.1]} 24... h6 {[%clk 0:01:46.4]} 25.
Rh4 {[%clk 0:02:37.8]} 25... Nd7 {[%clk 0:01:28.7]} 26. Qd4 {[%clk 0:02:30.7]}
26... f6 {[%clk 0:01:18.3]} 27. e4 {[%clk 0:02:29.2]} 27... dxe4 {[%clk
0:00:51.8]} 28. Rxe4 {[%clk 0:02:27.6]} 28... Bf7 {[%clk 0:00:19.9]} 29. Re8+
{[%clk 0:02:26.8]} 29... Bxe8 {[%clk 0:00:19.9]} 30. Bxc6 {[%clk 0:02:27.4]}
30... Rxc6 {[%clk 0:00:21.8]} 31. Qd5+ {[%clk 0:02:28.4]} 1

[Event "Torneo Nuevo Centro. Jornada 10"]
[Site "Chess.com"]
[Date "2020.08.21"]
[Round "7"]
[White "Blanco Solaz, Ramón"]
[Black "Donate Moreno, Silvia"]
[Result "0-1"]
[WhiteElo "1992"]
[BlackElo "1864"]
[TimeControl "180+2"]
[EndTime "11:45:42 PDT"]
[Termination "Victoria de monetesSAL por abandono"]

1. g3 {[%clk 0:03:01.9]} 1... g6 {[%clk 0:03:00.8]} 2. c4 {[%clk 0:03:02.2]}
2... Bg7 {[%clk 0:03:01.9]} 3. Nc3 {[%clk 0:03:03.7]} 3... e5 {[%clk 0:03:02.8]}
4. Bg2 {[%clk 0:03:04.3]} 4... d6 {[%clk 0:03:03.8]} 5. d3 {[%clk 0:03:05]} 5...
f5 {[%clk 0:03:05.1]} 6. Nf3 {[%clk 0:03:02.2]} 6... Nf6 {[%clk 0:03:06.2]} 7.
Bg5 {[%clk 0:03:02.3]} 7... h6 {[%clk 0:03:04.9]} 8. Bxf6 {[%clk 0:03:03]} 8...
Qxf6 {[%clk 0:03:06.8]} 9. e3 {[%clk 0:03:04]} 9... O-O {[%clk 0:03:04.7]} 10.
O-O {[%clk 0:03:03]} 10... c6 {[%clk 0:03:04]} 11. Rc1 {[%clk 0:02:54.3]} 11...
Be6 {[%clk 0:03:03.6]} 12. b4 {[%clk 0:02:54.5]} 12... a6 {[%clk 0:03:02.8]} 13.
a4 {[%clk 0:02:50.1]} 13... Qf7 {[%clk 0:02:52.8]} 14. b5 {[%clk 0:02:47.2]}
14... axb5 {[%clk 0:02:53.7]} 15. axb5 {[%clk 0:02:48.2]} 15... Nd7 {[%clk
0:02:54.1]} 16. bxc6 {[%clk 0:02:44]} 16... bxc6 {[%clk 0:02:53.8]} 17. Ne1
{[%clk 0:02:40.1]} 17... d5 {[%clk 0:02:53.6]} 18. cxd5 {[%clk 0:02:32.7]} 18...
cxd5 {[%clk 0:02:55.5]} 19. Nc2 {[%clk 0:02:23.2]} 19... Rfc8 {[%clk 0:02:48.3]}
20. Nb4 {[%clk 0:02:22.9]} 20... Nb6 {[%clk 0:02:40.2]} 21. Nb5 {[%clk
0:02:04.4]} 21... Qd7 {[%clk 0:02:29.7]} 22. Nc3 {[%clk 0:01:53.9]} 22... e4
{[%clk 0:02:28.4]} 23. d4 {[%clk 0:01:53.9]} 23... Bf8 {[%clk 0:02:28.9]} 24.
Qb3 {[%clk 0:01:44.4]} 24... Nc4 {[%clk 0:02:28.5]} 25. Rfd1 {[%clk 0:01:20.2]}
25... Rab8 {[%clk 0:02:22.1]} 26. Nca2 {[%clk 0:01:21.6]} 26... Qb7 {[%clk
0:01:56.6]} 27. Rb1 {[%clk 0:01:21.8]} 27... Bd7 {[%clk 0:01:52.8]} 28. Bf1
{[%clk 0:01:22]} 28... Qa7 {[%clk 0:01:38.7]} 29. Bxc4 {[%clk 0:01:14.6]} 29...
dxc4 {[%clk 0:01:33.3]} 30. Qc2 {[%clk 0:01:13.3]} 30... Ba4 {[%clk 0:01:32.7]}
31. Qxc4+ {[%clk 0:01:13.3]} 0

[Event "Torneo Nuevo Centro. Jornada 10"]
[Site "Chess.com"]
[Date "2020.08.21"]
[Round "7"]
[White "Martínez Escandell, Alfonso"]
[Black "Chernikov, Vladimir"]
[Result "0-1"]
[WhiteElo "1886"]
[BlackElo "2223"]
[TimeControl "180+2"]
[EndTime "11:45:44 PDT"]
[Termination "Victoria de isla88 por jaque mate"]

1. e4 {[%clk 0:03:01.9]} 1... d6 {[%clk 0:03:01.2]} 2. Bc4 {[%clk 0:03:01.4]}
2... c6 {[%clk 0:02:59.6]} 3. Qf3 {[%clk 0:03:01]} 3... Nf6 {[%clk 0:02:57.7]}
4. Nc3 {[%clk 0:02:59.9]} 4... Nbd7 {[%clk 0:02:52.3]} 5. Nge2 {[%clk
0:03:00.2]} 5... Ne5 {[%clk 0:02:52.3]} 6. Bxf7+ {[%clk 0:02:59.6]} 6... Nxf7
{[%clk 0:02:41]} 7. O-O {[%clk 0:02:59.8]} 7... Bg4 {[%clk 0:02:38.4]} 8. Qg3
{[%clk 0:03:00]} 8... Qd7 {[%clk 0:02:36.9]} 9. f3 {[%clk 0:02:59.5]} 9... Be6
{[%clk 0:02:35.9]} 10. d4 {[%clk 0:02:54]} 10... Bc4 {[%clk 0:02:22.8]} 11. Re1
{[%clk 0:02:52.5]} 11... Bxe2 {[%clk 0:02:19.1]} 12. Rxe2 {[%clk 0:02:51.7]}
12... e5 {[%clk 0:02:20.3]} 13. dxe5 {[%clk 0:02:48.6]} 13... Nxe5 {[%clk
0:02:19.7]} 14. f4 {[%clk 0:02:46.9]} 14... Ng6 {[%clk 0:02:13.9]} 15. e5 {[%clk
0:02:45.6]} 15... dxe5 {[%clk 0:02:14.9]} 16. fxe5 {[%clk 0:02:43.8]} 16... Bc5+
{[%clk 0:02:15.1]} 17. Kh1 {[%clk 0:02:43.5]} 17... Nh5 {[%clk 0:01:58.6]} 18.
Qf3 {[%clk 0:02:44.2]} 18... Rf8 {[%clk 0:01:47.7]} 19. Qxf8+ {[%clk 0:02:23.3]}
19... Kxf8 {[%clk 0:01:45]} 20. e6 {[%clk 0:02:24.3]} 20... Qd4 {[%clk
0:01:31.2]} 21. Be3 {[%clk 0:02:22.5]} 21... Qc4 {[%clk 0:01:30.9]} 22. Rf1+
{[%clk 0:02:14]} 22... Kg8 {[%clk 0:01:30.4]} 23. Bxc5 {[%clk 0:02:12.1]} 23...
Qxc5 {[%clk 0:01:25.5]} 24. Rf7 {[%clk 0:01:54.4]} 24... Re8 {[%clk 0:01:12.5]}
25. Rxb7 {[%clk 0:01:52.1]} 25... Ngf4 {[%clk 0:01:07.9]} 26. Re1 {[%clk
0:01:46.7]} 26... Qf2 {[%clk 0:01:05.8]} 27. Rg1 {[%clk 0:01:43.4]} 27... Rxe6
{[%clk 0:00:54.7]} 28. Rxa7 {[%clk 0:01:39.4]} 28... Ng3+ {[%clk 0:00:55]} 29.
hxg3 {[%clk 0:01:36.8]} 29... Rh6# {[%clk 0:00:56.9]} 0

[Event "Torneo Nuevo Centro. Jornada 10"]
[Site "Chess.com"]
[Date "2020.08.21"]
[Round "7"]
[White "Mangues Rubia, Alex"]
[Black "Montesinos Diaz, Luis"]
[Result "0-1"]
[WhiteElo "1553"]
[BlackElo "1876"]
[TimeControl "180+2"]
[EndTime "11:46:03 PDT"]
[Termination "Victoria de Gwiso_06 por abandono"]

1. d4 {[%clk 0:03:01.9]} 1... Nf6 {[%clk 0:02:59.6]} 2. Bf4 {[%clk 0:03:03.3]}
2... d6 {[%clk 0:02:59.8]} 3. Nc3 {[%clk 0:03:03.2]} 3... g6 {[%clk 0:03:00.7]}
4. e4 {[%clk 0:03:04.2]} 4... Bg7 {[%clk 0:03:01.8]} 5. Qd2 {[%clk 0:03:05.8]}
5... O-O {[%clk 0:03:00]} 6. O-O-O {[%clk 0:03:07.2]} 6... a6 {[%clk 0:02:59]}
7. Bh6 {[%clk 0:03:07.2]} 7... b5 {[%clk 0:02:59.9]} 8. f3 {[%clk 0:03:07.4]}
8... b4 {[%clk 0:02:57.8]} 9. Nce2 {[%clk 0:03:08.4]} 9... a5 {[%clk 0:02:58.7]}
10. h4 {[%clk 0:03:08.8]} 10... Be6 {[%clk 0:02:59]} 11. h5 {[%clk 0:02:44.8]}
11... Bxa2 {[%clk 0:02:56.7]} 12. g4 {[%clk 0:02:43.2]} 12... Nbd7 {[%clk
0:02:50.8]} 13. Bxg7 {[%clk 0:02:32.3]} 13... Kxg7 {[%clk 0:02:48.9]} 14. hxg6
{[%clk 0:02:33.7]} 14... fxg6 {[%clk 0:02:42.8]} 15. Qh6+ {[%clk 0:02:34.2]}
15... Kg8 {[%clk 0:02:44]} 16. g5 {[%clk 0:02:35.3]} 16... Nh5 {[%clk
0:02:44.1]} 17. Ng3 {[%clk 0:02:36.1]} 17... Rf7 {[%clk 0:02:39.9]} 18. Nxh5
{[%clk 0:02:34.9]} 18... gxh5 {[%clk 0:02:41.8]} 19. b3 {[%clk 0:02:23.5]} 19...
a4 {[%clk 0:02:41.5]} 20. Bc4 {[%clk 0:02:21.8]} 20... Qf8 {[%clk 0:02:32.7]}
21. Bxf7+ {[%clk 0:02:19.6]} 21... Qxf7 {[%clk 0:02:30.3]} 22. Qxh5 {[%clk
0:01:29.1]} 22... Qxh5 {[%clk 0:02:22.6]} 23. Rxh5 {[%clk 0:01:31]} 23... axb3
{[%clk 0:02:23.6]} 24. cxb3 {[%clk 0:01:31.8]} 24... Bxb3 {[%clk 0:02:24.6]} 25.
Rd3 {[%clk 0:01:11.9]} 25... Bc4 {[%clk 0:02:21.6]} 26. Rd1 {[%clk 0:01:03.2]}
26... c5 {[%clk 0:02:16.2]} 27. dxc5 {[%clk 0:00:55.2]} 27... Nxc5 {[%clk
0:02:16.9]} 28. Rh2 {[%clk 0:00:46.6]} 28... Ra1+ {[%clk 0:02:13]} 29. Kd2
{[%clk 0:00:40]} 29... Ra2+ {[%clk 0:02:12.9]} 30. Ke3 {[%clk 0:00:37.8]} 30...
Rxh2 {[%clk 0:02:12.2]} 31. Rc1 {[%clk 0:00:35.5]} 31... Bb5 {[%clk 0:02:05.2]}
32. f4 {[%clk 0:00:32]} 32... b3 {[%clk 0:02:02.7]} 33. f5 {[%clk 0:00:31.6]}
33... b2 {[%clk 0:02:02.5]} 34. Rb1 {[%clk 0:00:32.2]} 34... Bd3 {[%clk
0:02:02.7]} 0

[Event "Torneo Nuevo Centro. Jornada 10"]
[Site "Chess.com"]
[Date "2020.08.21"]
[Round "7"]
[White "Grigorev, Artur "]
[Black "Fitzpatrick Dimas  , Andrew "]
[Result "0-1"]
[WhiteElo "915"]
[BlackElo "1033"]
[TimeControl "180+2"]
[EndTime "11:46:25 PDT"]
[Termination "Victoria de Andrewlito por tiempo"]

1. e4 {[%clk 0:03:01.9]} 1... e5 {[%clk 0:03:00.3]} 2. Nf3 {[%clk 0:03:01.6]}
2... Nc6 {[%clk 0:02:59.5]} 3. Bc4 {[%clk 0:02:59.5]} 3... Bc5 {[%clk 0:02:58]}
4. b4 {[%clk 0:02:59.4]} 4... Bxb4 {[%clk 0:02:58.1]} 5. c3 {[%clk 0:03:00.4]}
5... Bc5 {[%clk 0:02:55.8]} 6. d4 {[%clk 0:03:01.5]} 6... exd4 {[%clk 0:02:55]}
7. O-O {[%clk 0:03:01.1]} 7... dxc3 {[%clk 0:02:54.7]} 8. Bxf7+ {[%clk
0:03:01.3]} 8... Kxf7 {[%clk 0:02:52.9]} 9. Qd5+ {[%clk 0:03:01.6]} 9... Ke8
{[%clk 0:02:48.5]} 10. Qxc5 {[%clk 0:03:02.2]} 10... d6 {[%clk 0:02:43.6]} 11.
Qxc3 {[%clk 0:03:00.6]} 11... Nf6 {[%clk 0:02:43.2]} 12. e5 {[%clk 0:02:55.6]}
12... Ne4 {[%clk 0:02:38.8]} 13. exd6 {[%clk 0:02:54.2]} 13... Nxc3 {[%clk
0:02:39]} 14. Re1+ {[%clk 0:02:46.2]} 14... Kf8 {[%clk 0:02:35.9]} 15. Bf4
{[%clk 0:02:38.4]} 15... Nxb1 {[%clk 0:02:27.8]} 16. dxc7 {[%clk 0:02:36.4]}
16... Qf6 {[%clk 0:02:17.9]} 17. Raxb1 {[%clk 0:02:35.8]} 17... Qxf4 {[%clk
0:02:14.8]} 18. Rb3 {[%clk 0:01:56.6]} 18... Na5 {[%clk 0:02:03.2]} 19. Rb5
{[%clk 0:01:14.1]} 19... Nc6 {[%clk 0:01:56.1]} 20. Rd1 {[%clk 0:00:46.6]} 20...
Bg4 {[%clk 0:01:47]} 21. Rbd5 {[%clk 0:00:32.6]} 21... Qxc7 {[%clk 0:01:42.3]}
22. h3 {[%clk 0:00:11.8]} 22... Bxf3 {[%clk 0:01:40.6]} 23. gxf3 {[%clk
0:00:10.1]} 23... h5 {[%clk 0:01:27.9]} 0

[Event "Torneo Nuevo Centro. Jornada 10"]
[Site "Chess.com"]
[Date "2020.08.21"]
[Round "7"]
[White "Aymerich Rosell, Pablo"]
[Black "Nadal Fajardo, Ricard"]
[Result "1-0"]
[WhiteElo "1999"]
[BlackElo "2208"]
[TimeControl "180+2"]
[EndTime "11:46:26 PDT"]
[Termination "Victoria de jasikevic por tiempo"]

1. e4 {[%clk 0:03:01.9]} 1... c6 {[%clk 0:03:01]} 2. d4 {[%clk 0:03:01.2]} 2...
d5 {[%clk 0:03:02.9]} 3. e5 {[%clk 0:03:02.3]} 3... Bf5 {[%clk 0:03:02.6]} 4.
Nf3 {[%clk 0:03:02.1]} 4... e6 {[%clk 0:03:03.7]} 5. Be2 {[%clk 0:03:03.1]} 5...
c5 {[%clk 0:03:05]} 6. Be3 {[%clk 0:03:03.3]} 6... cxd4 {[%clk 0:03:04]} 7. Nxd4
{[%clk 0:03:04]} 7... Ne7 {[%clk 0:03:05.5]} 8. O-O {[%clk 0:03:03.8]} 8... Nbc6
{[%clk 0:03:06.4]} 9. Bb5 {[%clk 0:03:04.1]} 9... Bg6 {[%clk 0:02:53.4]} 10. Nd2
{[%clk 0:02:55.4]} 10... a6 {[%clk 0:02:53.2]} 11. Bxc6+ {[%clk 0:02:53.6]}
11... Nxc6 {[%clk 0:02:49.3]} 12. f4 {[%clk 0:02:45.3]} 12... Bc5 {[%clk
0:02:20.4]} 13. c3 {[%clk 0:02:44]} 13... Nxd4 {[%clk 0:01:51.1]} 14. cxd4
{[%clk 0:02:43.3]} 14... Ba7 {[%clk 0:01:49.6]} 15. Rc1 {[%clk 0:02:34.5]} 15...
O-O {[%clk 0:01:48.6]} 16. g4 {[%clk 0:02:32]} 16... Bd3 {[%clk 0:01:37]} 17.
Rf3 {[%clk 0:02:30.4]} 17... Qh4 {[%clk 0:01:15.6]} 18. Rg3 {[%clk 0:02:23.5]}
18... Rfc8 {[%clk 0:00:49.5]} 19. Rxc8+ {[%clk 0:02:23.1]} 19... Rxc8 {[%clk
0:00:50.1]} 20. Nf3 {[%clk 0:02:23.5]} 20... Qe7 {[%clk 0:00:46.3]} 21. Qxd3
{[%clk 0:02:23.6]} 21... Qb4 {[%clk 0:00:40]} 22. Qd2 {[%clk 0:02:09.3]} 22...
Qa4 {[%clk 0:00:39]} 23. b3 {[%clk 0:02:06.6]} 23... Qa3 {[%clk 0:00:36.2]} 24.
f5 {[%clk 0:02:05.6]} 24... Bb6 {[%clk 0:00:33.3]} 25. f6 {[%clk 0:01:53.4]}
25... Ba5 {[%clk 0:00:32.1]} 26. Qf2 {[%clk 0:01:48.3]} 26... g6 {[%clk
0:00:14.1]} 27. Rh3 {[%clk 0:01:48.3]} 1

[Event "Torneo Nuevo Centro. Jornada 10"]
[Site "Chess.com"]
[Date "2020.08.21"]
[Round "7"]
[White "Polikarpov, Anton"]
[Black "Chofre Murcia, Adrián"]
[Result "1-0"]
[WhiteElo "1341"]
[BlackElo "1618"]
[TimeControl "180+2"]
[EndTime "11:46:43 PDT"]
[Termination "Victoria de AntonPolikarpov por abandono"]

1. e4 {[%clk 0:03:01.9]} 1... e5 {[%clk 0:02:59]} 2. Nf3 {[%clk 0:03:02.4]} 2...
Nc6 {[%clk 0:02:59.3]} 3. Bc4 {[%clk 0:03:02.3]} 3... Bc5 {[%clk 0:02:58.2]} 4.
d3 {[%clk 0:03:00.4]} 4... d6 {[%clk 0:02:58.1]} 5. h3 {[%clk 0:02:50.9]} 5...
h6 {[%clk 0:02:55]} 6. O-O {[%clk 0:02:51.3]} 6... Nf6 {[%clk 0:02:53.8]} 7. Be3
{[%clk 0:02:42.5]} 7... Bb6 {[%clk 0:02:51.7]} 8. d4 {[%clk 0:02:37.1]} 8...
exd4 {[%clk 0:02:48.2]} 9. Nxd4 {[%clk 0:02:33.6]} 9... Bxd4 {[%clk 0:02:48.5]}
10. Bxd4 {[%clk 0:02:32.3]} 10... Nxd4 {[%clk 0:02:49.3]} 11. Qxd4 {[%clk
0:02:31.3]} 11... O-O {[%clk 0:02:50.1]} 12. e5 {[%clk 0:02:23.6]} 12... dxe5
{[%clk 0:02:46.7]} 13. Qxe5 {[%clk 0:02:23.2]} 13... Re8 {[%clk 0:02:44.8]} 14.
Qg3 {[%clk 0:02:05.9]} 14... Qd4 {[%clk 0:02:40.5]} 15. Bb3 {[%clk 0:02:02.1]}
15... Qxb2 {[%clk 0:02:39.5]} 16. Nc3 {[%clk 0:02:00.2]} 16... Qa3 {[%clk
0:02:38.3]} 17. Nd5 {[%clk 0:01:55.9]} 17... Nxd5 {[%clk 0:02:28.8]} 18. Bxd5
{[%clk 0:01:53.8]} 18... Qxg3 {[%clk 0:02:28.1]} 19. fxg3 {[%clk 0:01:54.4]}
19... c6 {[%clk 0:02:29.2]} 20. Bxf7+ {[%clk 0:01:53.4]} 20... Kf8 {[%clk
0:02:22.5]} 21. Bxe8+ {[%clk 0:01:53.1]} 21... Kxe8 {[%clk 0:02:23.4]} 22. Rae1+
{[%clk 0:01:53.4]} 22... Kd7 {[%clk 0:02:23.7]} 23. Rf7+ {[%clk 0:01:52.8]}
23... Kd6 {[%clk 0:02:24.4]} 24. Rxg7 {[%clk 0:01:53.2]} 24... Be6 {[%clk
0:02:22.5]} 25. Rg6 {[%clk 0:01:52.1]} 25... Re8 {[%clk 0:02:22.7]} 26. g4
{[%clk 0:01:46.3]} 26... Kd7 {[%clk 0:02:23.4]} 27. Rxh6 {[%clk 0:01:46.3]}
27... Bxa2 {[%clk 0:02:21.9]} 28. Rxe8 {[%clk 0:01:42.7]} 28... Kxe8 {[%clk
0:02:22.4]} 29. Rh8+ {[%clk 0:01:43.1]} 29... Kd7 {[%clk 0:02:18.7]} 30. Rh7+
{[%clk 0:01:43.3]} 30... Kc8 {[%clk 0:02:19]} 31. g5 {[%clk 0:01:41.9]} 31... a5
{[%clk 0:02:19.1]} 32. g6 {[%clk 0:01:42.2]} 32... a4 {[%clk 0:02:20.4]} 33. g7
{[%clk 0:01:42.5]} 33... a3 {[%clk 0:02:20.4]} 34. Rh8+ {[%clk 0:01:42.7]} 34...
Kc7 {[%clk 0:02:21.1]} 35. g8=Q {[%clk 0:01:42.2]} 35... Bxg8 {[%clk 0:02:21.6]}
36. Rxg8 {[%clk 0:01:42.6]} 36... b5 {[%clk 0:02:22.7]} 37. Ra8 {[%clk
0:01:42.1]} 37... b4 {[%clk 0:02:23.5]} 38. Kf2 {[%clk 0:01:39.8]} 38... Kb7
{[%clk 0:02:24.5]} 39. Ra4 {[%clk 0:01:39.4]} 39... Kb6 {[%clk 0:02:25.5]} 40.
Rxb4+ {[%clk 0:01:39.6]} 40... Ka5 {[%clk 0:02:26]} 41. Rb1 {[%clk 0:01:39.7]}
41... Ka4 {[%clk 0:02:25.4]} 42. Ke2 {[%clk 0:01:38.9]} 42... a2 {[%clk
0:02:26.1]} 43. Ra1 {[%clk 0:01:39.3]} 43... Ka3 {[%clk 0:02:27.4]} 44. h4
{[%clk 0:01:35.4]} 44... Kb2 {[%clk 0:02:28.4]} 45. Rxa2+ {[%clk 0:01:34.7]}
45... Kxa2 {[%clk 0:02:29.2]} 46. h5 {[%clk 0:01:35]} 46... Kb2 {[%clk
0:02:30.6]} 47. Kd3 {[%clk 0:01:35.6]} 47... c5 {[%clk 0:02:31]} 48. h6 {[%clk
0:01:34.9]} 48... Kc1 {[%clk 0:02:32.4]} 49. h7 {[%clk 0:01:34.7]} 49... Kd1
{[%clk 0:02:33.9]} 50. h8=Q {[%clk 0:01:34.2]} 50... Ke1 {[%clk 0:02:35.2]} 51.
Qh1+ {[%clk 0:01:33.7]} 51... Kf2 {[%clk 0:02:36]} 52. Qh3 {[%clk 0:01:33.6]}
52... c4+ {[%clk 0:02:34]} 53. Kd2 {[%clk 0:01:32.2]} 53... c3+ {[%clk
0:02:33.8]} 54. Kxc3 {[%clk 0:01:30.7]} 54... Kg1 {[%clk 0:02:34.6]} 55. g3
{[%clk 0:01:27.7]} 55... Kf2 {[%clk 0:02:34.8]} 56. Qh2+ {[%clk 0:01:28.3]}
56... Kf3 {[%clk 0:02:35.5]} 57. Kd4 {[%clk 0:01:27.1]} 57... Kg4 {[%clk
0:02:35.6]} 58. Qh4+ {[%clk 0:01:24]} 58... Kf3 {[%clk 0:02:36.3]} 59. Qf4+
{[%clk 0:01:24]} 59... Kg2 {[%clk 0:02:37.2]} 60. g4 {[%clk 0:01:23.9]} 60...
Kh3 {[%clk 0:02:37.8]} 61. g5 {[%clk 0:01:21.4]} 61... Kg2 {[%clk 0:02:38.3]}
62. g6 {[%clk 0:01:21.9]} 1

[Event "Torneo Nuevo Centro. Jornada 10"]
[Site "Chess.com"]
[Date "2020.08.21"]
[Round "7"]
[White "Beneyto de Ramon, Guillermo"]
[Black "Yuste Valenzuela, Alejandro"]
[Result "1-0"]
[WhiteElo "1664"]
[BlackElo "1861"]
[TimeControl "180+2"]
[EndTime "11:47:02 PDT"]
[Termination "Victoria de GUILLETE por abandono"]

1. c4 {[%clk 0:03:01.8]} 1... e5 {[%clk 0:03:00.6]} 2. Nc3 {[%clk 0:03:02.2]}
2... Nc6 {[%clk 0:03:01.1]} 3. g3 {[%clk 0:03:02.6]} 3... f5 {[%clk 0:03:02.3]}
4. Bg2 {[%clk 0:03:03.6]} 4... Nf6 {[%clk 0:03:03.5]} 5. d3 {[%clk 0:03:04.7]}
5... Bb4 {[%clk 0:03:04.1]} 6. Nf3 {[%clk 0:03:03.5]} 6... Bxc3+ {[%clk
0:03:05.4]} 7. bxc3 {[%clk 0:03:04.3]} 7... O-O {[%clk 0:03:06.3]} 8. O-O {[%clk
0:03:03.5]} 8... d6 {[%clk 0:03:07.5]} 9. Bg5 {[%clk 0:02:59.3]} 9... Qe8 {[%clk
0:03:08]} 10. e3 {[%clk 0:02:46.8]} 10... e4 {[%clk 0:02:52.7]} 11. Nd4 {[%clk
0:02:33.3]} 11... Nxd4 {[%clk 0:02:17.4]} 12. cxd4 {[%clk 0:02:33.4]} 12... Qg6
{[%clk 0:02:17]} 13. Bxf6 {[%clk 0:02:31.4]} 13... Rxf6 {[%clk 0:02:18.9]} 14.
dxe4 {[%clk 0:02:26.1]} 14... fxe4 {[%clk 0:02:20.8]} 15. Qc2 {[%clk 0:02:23.9]}
15... Bf5 {[%clk 0:02:20]} 16. Rab1 {[%clk 0:02:22.4]} 16... Qh5 {[%clk
0:02:15.3]} 17. Rxb7 {[%clk 0:02:16.1]} 17... Rh6 {[%clk 0:02:15.2]} 18. h4
{[%clk 0:02:14.9]} 18... g5 {[%clk 0:02:05.2]} 19. Bxe4 {[%clk 0:01:59.6]} 19...
Be6 {[%clk 0:01:16.9]} 20. Bg2 {[%clk 0:01:45.7]} 20... gxh4 {[%clk 0:01:12.9]}
21. Rb5 {[%clk 0:01:24.8]} 21... Qg4 {[%clk 0:00:36.4]} 22. Bxa8 {[%clk
0:00:56.6]} 22... hxg3 {[%clk 0:00:30.2]} 23. fxg3 {[%clk 0:00:47.7]} 23... Qh5
{[%clk 0:00:14.5]} 24. Rxh5 {[%clk 0:00:45.2]} 1